fUST/lending_fUST_20250223
["ID","MTS","AMOUNT","RATE_DAILY","PERIOD"]
[354157551,1740298241747,-500.0,0.00013698,2]
[354157552,1740298241756,-500.0,0.00013698,2]
[354157553,1740298241765,-500.0,0.00013698,2]
[354157554,1740298241774,-598.0,0.00013698,2]
[354157555,1740298241783,-500.0,0.00013698,2]
[354157556,1740298241792,-503.47851627,0.00013698,2]
[354157557,1740298241802,-500.0,0.00013698,2]
[354157558,1740298241811,-201.4737445,0.00013699,2]
[354157559,1740298241820,-467.295654,0.00013699,2]
[354157560,1740298241829,-193.616852,0.00013699,2]
[354157561,1740298241838,-3000.0,0.00013763,2]
[354157562,1740298241847,-500.0,0.0001378,2]
[354157563,1740298241856,-500.0,0.0001378,2]
[354157564,1740298241865,-156.22,0.0001378,2]
[354157565,1740298241874,-500.0,0.0001378,2]
[354157566,1740298241883,-500.0,0.0001378,2]
[354157567,1740298241979,-500.0,0.0001378,2]
[354157568,1740298241988,-602.54,0.0001378,2]
[354157569,1740298241997,-501.52,0.0001378,2]
[354157570,1740298242006,-500.0,0.0001378,2]
[354157571,1740298242015,-500.0,0.0001378,2]
[354157572,1740298242024,-1691.95,0.0001378,2]
[354157573,1740298242034,-500.0,0.0001378,2]
[354157574,1740298242043,-521.20982767,0.0001378,2]
[354157575,1740298242052,-500.0,0.0001378,2]
[354157576,1740298242061,-500.0,0.0001378,2]
[354157577,1740298242071,-548.79,0.0001378,2]
[354157578,1740298242080,-500.0,0.0001378,2]
[354157579,1740298242089,-500.0,0.0001378,2]
[354157580,1740298242098,-322.07,0.0001378,2]
[354157581,1740298242107,-500.0,0.0001378,2]
[354157582,1740298242116,-500.0,0.0001378,2]
[354157583,1740298242125,-500.0,0.0001378,2]
[354157584,1740298242134,-500.0,0.0001378,2]
[354157585,1740298242143,-500.0,0.0001378,2]
[354157586,1740298242153,-500.0,0.0001378,2]
[354157587,1740298242162,-500.0,0.0001378,2]
[354157588,1740298242171,-500.0,0.0001378,2]
[354157589,1740298242179,-500.0,0.0001378,2]
[354157590,1740298242188,-500.0,0.0001378,2]
[354157591,1740298242197,-500.0,0.0001378,2]
[354157592,1740298242206,-500.0,0.0001378,2]
[354157593,1740298242215,-2262.64,0.0001378,2]
[354157594,1740298242224,-500.0,0.0001378,2]
[354157595,1740298242233,-500.0,0.0001378,2]
[354157596,1740298242243,-500.0,0.0001378,2]
[354157597,1740298242252,-500.0,0.0001378,2]
[354157598,1740298242261,-357.21,0.0001378,2]
[354157599,1740298242270,-500.0,0.0001378,2]
[354157600,1740298242279,-500.0,0.0001378,2]
[354157601,1740298242287,-500.0,0.0001378,2]
[354157602,1740298242296,-500.0,0.0001378,2]
[354157603,1740298242306,-609.69,0.0001378,2]
[354157604,1740298242315,-5064.07,0.0001378,2]
[354157605,1740298242328,-1589.15,0.0001378,2]
[354157606,1740298242337,-452.38,0.0001378,2]
[354157607,1740298242346,-154.51,0.0001378,2]
[354157608,1740298242355,-500.0,0.0001378,2]
[354157609,1740298242364,-500.0,0.0001378,2]
[354157610,1740298242373,-1262.84,0.0001378,2]
[354157611,1740298242382,-610.99,0.0001378,2]
[354157612,1740298242394,-442.16,0.0001378,2]
[354157613,1740298242403,-507.15,0.0001378,2]
[354157614,1740298242412,-256.26,0.0001378,2]
[354157615,1740298242422,-500.0,0.0001378,2]
[354157616,1740298242431,-418.66,0.0001378,2]
[354157617,1740298242440,-277.82167666,0.0001378,2]
[354157618,1740298242449,-500.0,0.0001378,2]
[354157619,1740298242458,-598.0,0.0001378,2]
[354157620,1740298242467,-249.69,0.0001378,2]
[354157621,1740298242475,-500.0,0.00013825,2]
[354157622,1740298242484,-500.0,0.00013825,2]
[354157623,1740298242493,-500.10290801,0.00013831,2]
[354157624,1740298242502,-500.0,0.00013831,2]
[354157625,1740298242512,-500.51026839,0.00013836,2]
[354157626,1740298242521,-500.76722228,0.00013836,2]
[354157627,1740298242530,-500.0,0.00013836,2]
[354157628,1740298242539,-500.0,0.00013836,2]
[354157629,1740298242548,-500.0,0.00013836,2]
[354157630,1740298242557,-502.17899761,0.00013836,2]
[354157631,1740298242567,-500.0,0.00013863,2]
[354157632,1740298242576,-1691.95,0.00013863,2]
[354157633,1740298242586,-500.0,0.00013863,2]
[354157634,1740298242595,-162.33,0.00013863,2]
[354157635,1740298242604,-306.71,0.00013863,2]
[354157636,1740298242613,-197.99,0.00013863,2]
[354157637,1740298242623,-249.21573219,0.00013863,2]
[354157638,1740298242632,-500.0,0.00013863,2]
[354157639,1740298242641,-2262.64,0.00013863,2]
[354157640,1740298242650,-500.0,0.00013863,2]
[354157641,1740298242659,-500.0,0.00013863,2]
[354157642,1740298242667,-500.0,0.00013863,2]
[354157643,1740298242677,-500.0,0.00013863,2]
[354157644,1740298242687,-500.0,0.00013863,2]
[354157645,1740298242696,-609.69,0.00013863,2]
[354157646,1740298242706,-5064.07,0.00013863,2]
[354157647,1740298242715,-1589.15,0.00013863,2]
[354157648,1740298242724,-1262.84,0.00013863,2]
[354157649,1740298242734,-610.99,0.00013863,2]
[354157650,1740298242743,-507.15,0.00013863,2]
[354157651,1740298242753,-500.0,0.00013863,2]
[354157652,1740298242762,-500.0,0.00013863,2]
[354157653,1740298242771,-598.0,0.00013863,2]
[354157654,1740298242780,-500.0,0.00013866,2]
[354157655,1740298242789,-500.0,0.00013888,2]
[354157656,1740298242798,-500.0,0.00013945,2]
[354157657,1740298242807,-1691.95,0.00013945,2]
[354157658,1740298242817,-500.0,0.00013945,2]
[354157659,1740298242825,-573.68,0.00013945,2]
[354157660,1740298242835,-2262.64,0.00013945,2]
[354157661,1740298242843,-500.0,0.00013945,2]
[354157662,1740298242852,-500.0,0.00013945,2]
[354157663,1740298242861,-500.0,0.00013945,2]
[354157664,1740298242870,-500.0,0.00013945,2]
[354157665,1740298242879,-287.5,0.00013945,2]
[354157666,1740298242889,-609.69,0.00013945,2]
[354157667,1740298242898,-5064.07,0.00013945,2]
[354157668,1740298242907,-1589.15,0.00013945,2]
[354157669,1740298242916,-1262.84,0.00013945,2]
[354157670,1740298242926,-610.99,0.00013945,2]
[354157671,1740298242934,-507.15,0.00013945,2]
[354157672,1740298242943,-500.0,0.00013945,2]
[354157673,1740298242952,-500.0,0.00013945,2]
[354157674,1740298242961,-598.0,0.00013945,2]
[354157675,1740298242970,-13279.54588923,0.00013985,2]
[354157676,1740298242979,-500.0,0.00014027,2]
[354157677,1740298242988,-1691.95,0.00014027,2]
[354157678,1740298242997,-500.0,0.00014027,2]
[354157679,1740298243006,-2262.64,0.00014027,2]
[354157681,1740298243015,-438.78,0.00014027,2]
[354157683,1740298243024,-336.78,0.00014027,2]
[354157686,1740298243033,-500.0,0.00014027,2]
[354157688,1740298243042,-500.0,0.00014027,2]
[354157690,1740298243051,-609.69,0.00014027,2]
[354157692,1740298243061,-5064.07,0.00014027,2]
[354157693,1740298243071,-1589.15,0.00014027,2]
[354157695,1740298243080,-1262.84,0.00014027,2]
[354157696,1740298243089,-610.99,0.00014027,2]
[354157698,1740298243099,-507.15,0.00014027,2]
[354157700,1740298243109,-500.0,0.00014027,2]
[354157702,1740298243118,-500.0,0.00014027,2]
[354157704,1740298243127,-598.0,0.00014027,2]
[354157706,1740298243136,-500.0,0.00014054,2]
[354157707,1740298243146,-500.0,0.00014109,2]
[354157708,1740298243155,-1691.95,0.00014109,2]
[354157709,1740298243164,-500.0,0.00014109,2]
[354157710,1740298243173,-2262.64,0.00014109,2]
[354157711,1740298243183,-500.0,0.00014109,2]
[354157713,1740298243192,-500.0,0.00014109,2]
[354157714,1740298243201,-609.69,0.00014109,2]
[354157715,1740298243210,-5064.07,0.00014109,2]
[354157716,1740298243219,-1589.15,0.00014109,2]
[354157717,1740298243229,-1262.84,0.00014109,2]
[354157718,1740298243238,-610.99,0.00014109,2]
[354157720,1740298243248,-507.15,0.00014109,2]
[354157722,1740298243257,-500.0,0.00014109,2]
[354157723,1740298243266,-500.0,0.00014109,2]
[354157725,1740298243275,-598.0,0.00014109,2]
[354157727,1740298243284,-500.0,0.00014164,2]
[354157728,1740298243293,-500.0,0.0001419,2]
[354157730,1740298243302,-385.7983943,0.0001419,2]
[354157732,1740298243311,-500.0,0.00014191,2]
[354157733,1740298243321,-1691.95,0.00014191,2]
[354157734,1740298243330,-605.99551386,0.00014191,2]
[354157735,1740298243339,-2262.64,0.00014191,2]
[354157736,1740298243348,-161.80046797,0.00014191,2]
[354157738,1740298243357,-500.0,0.00014191,2]
[354157739,1740298243367,-609.69,0.00014191,2]
[354157740,1740298243376,-5064.07,0.00014191,2]
[354157741,1740298243386,-1589.15,0.00014191,2]
[354157742,1740298243398,-1262.84,0.00014191,2]
[354157743,1740298243407,-610.99,0.00014191,2]
[354157744,1740298243416,-507.15,0.00014191,2]
[354157745,1740298243425,-500.0,0.00014191,2]
[354157746,1740298243434,-500.0,0.00014191,2]
[354157747,1740298243443,-598.0,0.00014191,2]
[354157748,1740298243453,-500.0,0.00014221,2]
[354157749,1740298243462,-396.0,0.00014239,2]
[354157750,1740298243471,-500.0,0.00014273,2]
[354157751,1740298243480,-1691.95,0.00014273,2]
[354157753,1740298243490,-2262.64,0.00014273,2]
[354157754,1740298243498,-500.0,0.00014273,2]
[354157755,1740298243508,-609.69,0.00014273,2]
[354157756,1740298243518,-5064.07,0.00014273,2]
[354157757,1740298243528,-1589.15,0.00014273,2]
[354157758,1740298243537,-1262.84,0.00014273,2]
[354157760,1740298243547,-610.99,0.00014273,2]
[354157762,1740298243556,-507.15,0.00014273,2]
[354157764,1740298243565,-500.0,0.00014273,2]
[354157766,1740298243574,-500.0,0.00014273,2]
[354157767,1740298243584,-598.0,0.00014273,2]
[354157768,1740298243593,-500.0,0.00014356,2]
[354157769,1740298243603,-1691.95,0.00014356,2]
[354157770,1740298243611,-2262.64,0.00014356,2]
[354157771,1740298243621,-589.23540401,0.00014356,2]
[354157772,1740298243630,-609.69,0.00014356,2]
[354157773,1740298243640,-5064.07,0.00014356,2]
[354157774,1740298243649,-1589.15,0.00014356,2]
[354157775,1740298243658,-1262.84,0.00014356,2]
[354157776,1740298243668,-610.99,0.00014356,2]
[354157777,1740298243677,-507.15,0.00014356,2]
[354157778,1740298243686,-454.73030338,0.00014356,2]
[354157779,1740298243695,-500.0,0.00014356,2]
[354157780,1740298243704,-598.0,0.00014356,2]
[354157781,1740298243714,-500.720821,0.00014373,2]
[354157782,1740298243723,-501.14429813,0.00014373,2]
[354157783,1740298243732,-1000.0,0.00014379,2]
[354157784,1740298243741,-1001.93329769,0.00014384,2]
[354157785,1740298243750,-521.18019819,0.00014384,2]
[354157786,1740298243760,-622.57102164,0.00014384,2]
[354157787,1740298243769,-1004.60634579,0.00014414,2]
[354157788,1740298243779,-1000.0,0.00014436,2]
[354157789,1740298243788,-500.0,0.00014438,2]
[354157790,1740298243798,-1691.95,0.00014438,2]
[354157791,1740298243806,-2262.64,0.00014438,2]
[354157792,1740298243815,-609.69,0.00014438,2]
[354157793,1740298243825,-5064.07,0.00014438,2]
[354157794,1740298243834,-1589.15,0.00014438,2]
[354157795,1740298243843,-1262.84,0.00014438,2]
[354157796,1740298243853,-610.99,0.00014438,2]
[354157797,1740298243862,-507.15,0.00014438,2]
[354157798,1740298243871,-500.0,0.00014438,2]
[354157799,1740298243881,-598.0,0.00014438,2]
[354157800,1740298243890,-53148.72823245,0.00014465,5]
[354157801,1740298243900,-240.94456957,0.0001452,2]
[354157802,1740298243909,-1691.95,0.0001452,2]
[354157803,1740298243918,-2262.64,0.0001452,2]
[354157804,1740298243927,-609.69,0.0001452,2]
[354157805,1740298243937,-5064.07,0.0001452,2]
[354157806,1740298243946,-1589.15,0.0001452,2]
[354157807,1740298243955,-1262.84,0.0001452,2]
[354157808,1740298243964,-610.99,0.0001452,2]
[354157809,1740298243974,-507.15,0.0001452,2]
[354157810,1740298243983,-218.50152143,0.0001452,2]
[354157811,1740298243992,-598.0,0.0001452,2]
[354157812,1740298244001,-1691.95,0.00014602,2]
[354157813,1740298244010,-2262.64,0.00014602,2]
[354157814,1740298244019,-609.69,0.00014602,2]
[354157815,1740298244028,-5064.07,0.00014602,2]
[354157816,1740298244038,-1589.15,0.00014602,2]
[354157817,1740298244047,-1262.84,0.00014602,2]
[354157818,1740298244057,-610.99,0.00014602,2]
[354157819,1740298244067,-507.15,0.00014602,2]
[354157820,1740298244076,-598.0,0.00014602,2]
[354157821,1740298244086,-169.39098883,0.00014649,2]
[354157822,1740298244095,-12924.89674434,0.00014681,2]
[354157823,1740298244104,-1691.95,0.00014684,2]
[354157824,1740298244114,-2262.64,0.00014684,2]
[354157825,1740298244122,-609.69,0.00014684,2]
[354157826,1740298244131,-5064.07,0.00014684,2]
[354157827,1740298244218,-1589.15,0.00014684,2]
[354157828,1740298244228,-1262.84,0.00014684,2]
[354157829,1740298244237,-610.99,0.00014684,2]
[354157830,1740298244247,-507.15,0.00014684,2]
[354157831,1740298244256,-598.0,0.00014684,2]
[354157832,1740298244265,-1691.95,0.00014767,2]
[354157833,1740298244274,-2262.64,0.00014767,2]
[354157834,1740298244284,-609.69,0.00014767,2]
[354157835,1740298244293,-5064.07,0.00014767,2]
[354157836,1740298244303,-1589.15,0.00014767,2]
[354157837,1740298244312,-1262.84,0.00014767,2]
[354157838,1740298244322,-610.99,0.00014767,2]
[354157839,1740298244331,-507.15,0.00014767,2]
[354157840,1740298244341,-598.0,0.00014767,2]
[354157841,1740298244350,-160.35455737,0.00014799,2]
[354157842,1740298244359,-623.0,0.000148,2]
[354157843,1740298244369,-150.102,0.0001482,2]
[354157844,1740298244378,-150.347,0.0001482,2]
[354157845,1740298244388,-1975.206,0.0001482,2]
[354157846,1740298244400,-539.334,0.0001482,2]
[354157847,1740298244409,-2286.0,0.0001482,2]
[354157848,1740298244419,-748.53637416,0.00014822,2]
[354157849,1740298244563,-251.46362584,0.00014822,2]
[354157850,1740298244573,-360.76067324,0.00014849,2]
[354157851,1740298244584,-984.7674761,0.00014849,2]
[354157862,1740298266943,155.03,8.001e-05,2]
[354157863,1740298754206,274.399738,9.041e-05,2]
[354157866,1740299314170,1119.16123286,0.00018176,90]
[354157883,1740299432706,-315.44700242,0.00012781,2]
[354157884,1740299432718,-461.28571038,0.00012781,2]
[354157885,1740299432727,-2245.96492556,0.000135,2]
[354157886,1740299432763,-4581.15234408,0.000135,2]
[354157887,1740299432773,-300.0,0.00013697,2]
[354157888,1740299432786,-501.96513376,0.00013698,2]
[354157889,1740299432799,-500.0,0.00013698,2]
[354157890,1740299432809,-149.52199805,0.00013698,2]
[354157891,1740299432820,-1.95031844,0.00013698,2]
[354157892,1740299432829,-312.59660839,0.00013698,2]
[354157893,1740299432841,-196.85751865,0.00013698,2]
[354157894,1740299432851,-500.0,0.00013698,2]
[354157895,1740299432860,-308.82217575,0.00013698,2]
[354157896,1740299432878,-194.35711606,0.00013698,2]
[354157897,1740299432887,-500.0,0.00013698,2]
[354157898,1740299432899,-500.0,0.00013698,2]
[354157899,1740299432908,-1353.9,0.00013698,2]
[354157900,1740299432917,-500.0,0.00013698,2]
[354157902,1740299432927,-500.0,0.00013698,2]
[354157903,1740299432936,-540.44,0.00013698,2]
[354157904,1740299432947,-219.05290424,0.00013698,2]
[354157905,1740299432956,-500.0,0.00013698,2]
[354157906,1740299432966,-575.04,0.00013698,2]
[354157907,1740299432975,-500.0,0.00013698,2]
[354157908,1740299432985,-500.0,0.00013698,2]
[354157909,1740299432994,-500.0,0.00013698,2]
[354157910,1740299433003,-500.0,0.00013698,2]
[354157911,1740299433013,-500.0,0.00013698,2]
[354157912,1740299433023,-590.96,0.00013698,2]
[354157913,1740299433032,-500.0,0.00013698,2]
[354157914,1740299433042,-500.0,0.00013698,2]
[354157915,1740299433051,-500.0,0.00013698,2]
[354157916,1740299433060,-500.0,0.00013698,2]
[354157917,1740299433070,-503.491117,0.00013698,2]
[354157918,1740299433079,-500.0,0.00013698,2]
[354157919,1740299433089,-500.0,0.00013698,2]
[354157920,1740299433101,-500.0,0.00013698,2]
[354157921,1740299433112,-500.0,0.00013698,2]
[354157922,1740299433121,-377.91492192,0.00013698,2]
[354157923,1740299433131,-500.0,0.00013698,2]
[354157924,1740299433140,-500.0,0.00013698,2]
[354157925,1740299433150,-552.66575695,0.00013698,2]
[354157926,1740299433160,-500.0,0.00013698,2]
[354157927,1740299433170,-500.0,0.00013698,2]
[354157928,1740299433180,-500.0,0.00013698,2]
[354157929,1740299433190,-500.0,0.00013698,2]
[354157930,1740299433199,-500.0,0.00013698,2]
[354157931,1740299433209,-500.0,0.00013698,2]
[354157932,1740299433219,-500.0,0.00013698,2]
[354157933,1740299433229,-500.0,0.00013698,2]
[354157934,1740299433239,-500.0,0.00013698,2]
[354157935,1740299433249,-500.0,0.00013698,2]
[354157936,1740299433258,-601.54,0.00013698,2]
[354157937,1740299433268,-255.86419507,0.00013698,2]
[354157956,1740299438424,-244.13580493,0.00013698,2]
[354157958,1740299438433,-500.0,0.00013698,2]
[354157960,1740299438443,-500.0,0.00013698,2]
[354157962,1740299438452,-500.0,0.00013698,2]
[354157964,1740299438461,-431.22407319,0.00013698,2]
[354157966,1740299438472,-68.77592681,0.00013698,2]
[354157968,1740299438482,-500.0,0.00013698,2]
[354157970,1740299438491,-500.0,0.00013698,2]
[354157972,1740299438500,-500.0,0.00013698,2]
[354157974,1740299438509,-506.26753492,0.00013698,2]
[354157976,1740299438518,-598.35,0.00013698,2]
[354157978,1740299438527,-2266.79,0.00013698,2]
[354157980,1740299438537,-500.0,0.00013698,2]
[354157982,1740299438546,-501.22622359,0.00013698,2]
[354157984,1740299438555,-42.87397708,0.00013698,2]
[354157987,1740299438567,-457.12602292,0.00013698,2]
[354157989,1740299438575,-4220.06,0.00013698,2]
[354157991,1740299438584,-438.78,0.00013698,2]
[354157993,1740299438593,-1324.29,0.00013698,2]
[354157995,1740299438602,-508.07,0.00013698,2]
[354157997,1740299438611,-500.0,0.00013698,2]
[354157999,1740299438620,-543.42,0.00013698,2]
[354158001,1740299438629,-500.0,0.00013698,2]
[354158003,1740299438638,-500.0,0.00013698,2]
[354158005,1740299438647,-500.0,0.00013698,2]
[354158007,1740299438657,-1240.79,0.00013698,2]
[354158009,1740299438666,-585.87,0.00013698,2]
[354158011,1740299438675,-500.0,0.00013698,2]
[354158013,1740299438684,-500.0,0.00013698,2]
[354158015,1740299438693,-508.55,0.00013698,2]
[354158017,1740299438703,-500.0,0.00013698,2]
[354158019,1740299438712,-500.0,0.00013698,2]
[354158021,1740299438720,-233.647827,0.00013699,2]
[354158023,1740299438730,-193.616852,0.00013699,2]
[354158024,1740299438739,-500.0,0.0001378,2]
[354158027,1740299438748,-500.0,0.0001378,2]
[354158029,1740299438758,-1353.9,0.0001378,2]
[354158031,1740299438767,-500.0,0.0001378,2]
[354158033,1740299438776,-500.0,0.0001378,2]
[354158035,1740299438785,-500.0,0.0001378,2]
[354158037,1740299438796,-336.38331126,0.0001378,2]
[354158039,1740299438808,-163.61668874,0.0001378,2]
[354158041,1740299438817,-450.43,0.0001378,2]
[354158043,1740299438826,-500.0,0.0001378,2]
[354158045,1740299438835,-500.0,0.0001378,2]
[354158047,1740299438845,-2266.79,0.0001378,2]
[354158049,1740299438853,-500.0,0.0001378,2]
[354158051,1740299438863,-4220.06,0.0001378,2]
[354158053,1740299438873,-1324.29,0.0001378,2]
[354158055,1740299438882,-508.07,0.0001378,2]
[354158057,1740299438892,-1240.79,0.0001378,2]
[354158059,1740299438902,-585.87,0.0001378,2]
[354158061,1740299438910,-522.03,0.0001378,2]
[354158063,1740299438919,-334.46,0.0001378,2]
[354158065,1740299438928,-508.55,0.0001378,2]
[354158067,1740299438938,-500.0,0.0001378,2]
[354158069,1740299438948,-500.0,0.00013863,2]
[354158071,1740299438957,-661.3323204,0.00013863,2]
[354158086,1740299440776,-500.0,0.00013698,2]
[354158087,1740299440786,-500.0,0.0001378,2]
[354158088,1740299440797,-692.5676796,0.00013863,2]
[354158089,1740299440808,-500.0,0.00013863,2]
[354158090,1740299440818,-605.99551386,0.00013863,2]
[354158091,1740299440828,-500.0,0.00013863,2]
[354158092,1740299440839,-470.37,0.00013863,2]
[354158093,1740299440848,-2266.79,0.00013863,2]
[354158094,1740299440858,-500.0,0.00013863,2]
[354158095,1740299440867,-4220.06,0.00013863,2]
[354158096,1740299440877,-1324.29,0.00013863,2]
[354158097,1740299440886,-508.07,0.00013863,2]
[354158098,1740299440895,-1240.79,0.00013863,2]
[354158099,1740299440905,-585.87,0.00013863,2]
[354158100,1740299440915,-508.55,0.00013863,2]
[354158101,1740299440924,-500.0,0.00013863,2]
[354158102,1740299440933,-500.0,0.00013863,2]
[354158103,1740299440943,-500.0,0.00013945,2]
[354158104,1740299440953,-1353.9,0.00013945,2]
[354158105,1740299440963,-500.0,0.00013945,2]
[354158106,1740299440972,-525.68046797,0.00013945,2]
[354158107,1740299440982,-2266.79,0.00013945,2]
[354158108,1740299440991,-500.0,0.00013945,2]
[354158109,1740299441000,-4220.06,0.00013945,2]
[354158110,1740299441010,-1324.29,0.00013945,2]
[354158111,1740299441020,-508.07,0.00013945,2]
[354158112,1740299441029,-1240.79,0.00013945,2]
[354158113,1740299441039,-585.87,0.00013945,2]
[354158114,1740299441050,-508.55,0.00013945,2]
[354158115,1740299441059,-500.0,0.00013945,2]
[354158116,1740299441069,-500.0,0.00013945,2]
[354158117,1740299441079,-501.14429813,0.00013956,2]
[354158118,1740299441088,-500.720821,0.00013956,2]
[354158119,1740299441199,-500.0,0.00013971,2]
[354158120,1740299441208,-500.0,0.00013971,2]
[354158121,1740299441217,-521.18019819,0.00013971,2]
[354158122,1740299441227,-500.0,0.00014,2]
[354158123,1740299441237,-622.57102164,0.00014,2]
[354158124,1740299441247,-588.16130816,0.00014,2]
[354158125,1740299441257,-500.27923535,0.00014,2]
[354158126,1740299441266,-500.0,0.00014006,2]
[354158127,1740299441276,-500.0,0.00014018,2]
[354158128,1740299441286,-500.0,0.00014027,2]
[354158129,1740299441295,-1353.9,0.00014027,2]
[354158130,1740299441305,-500.0,0.00014027,2]
[354158131,1740299441315,-2266.79,0.00014027,2]
[354158132,1740299441324,-500.0,0.00014027,2]
[354158133,1740299441334,-4220.06,0.00014027,2]
[354158134,1740299441343,-1324.29,0.00014027,2]
[354158135,1740299441352,-508.07,0.00014027,2]
[354158136,1740299441363,-1240.79,0.00014027,2]
[354158137,1740299441372,-585.87,0.00014027,2]
[354158138,1740299441381,-508.55,0.00014027,2]
[354158139,1740299441391,-500.0,0.00014027,2]
[354158140,1740299441401,-218.50152143,0.00014027,2]
[354158141,1740299441411,-500.0,0.00014035,2]
[354158142,1740299441420,-500.0,0.00014109,2]
[354158143,1740299441430,-1353.9,0.00014109,2]
[354158144,1740299441440,-500.0,0.00014109,2]
[354158145,1740299441450,-2266.79,0.00014109,2]
[354158146,1740299441459,-500.0,0.00014109,2]
[354158147,1740299441469,-4220.06,0.00014109,2]
[354158148,1740299441480,-1324.29,0.00014109,2]
[354158149,1740299441490,-508.07,0.00014109,2]
[354158150,1740299441499,-1240.79,0.00014109,2]
[354158151,1740299441509,-585.87,0.00014109,2]
[354158152,1740299441519,-508.55,0.00014109,2]
[354158153,1740299441529,-500.0,0.00014109,2]
[354158154,1740299441539,-500.0,0.00014164,2]
[354158155,1740299441548,-240.94456957,0.00014191,2]
[354158156,1740299441557,-1353.9,0.00014191,2]
[354158157,1740299441567,-500.0,0.00014191,2]
[354158158,1740299441576,-2266.79,0.00014191,2]
[354158159,1740299441586,-500.0,0.00014191,2]
[354158160,1740299441595,-4220.06,0.00014191,2]
[354158161,1740299441605,-1324.29,0.00014191,2]
[354158162,1740299441615,-508.07,0.00014191,2]
[354158163,1740299441624,-1240.79,0.00014191,2]
[354158164,1740299441634,-585.87,0.00014191,2]
[354158165,1740299441643,-508.55,0.00014191,2]
[354158166,1740299441654,-257.4037145,0.00014191,2]
[354158167,1740299441663,-1353.9,0.00014273,2]
[354158168,1740299441673,-500.0,0.00014273,2]
[354158169,1740299441682,-2266.79,0.00014273,2]
[354158170,1740299441692,-221.20540401,0.00014273,2]
[354158171,1740299441702,-4220.06,0.00014273,2]
[354158172,1740299441711,-1324.29,0.00014273,2]
[354158173,1740299441721,-508.07,0.00014273,2]
[354158174,1740299441730,-1240.79,0.00014273,2]
[354158175,1740299441739,-585.87,0.00014273,2]
[354158176,1740299441748,-508.55,0.00014273,2]
[354158177,1740299441757,-3000.0,0.00014338,2]
[354158178,1740299441766,-1353.9,0.00014356,2]
[354158179,1740299441776,-500.0,0.00014356,2]
[354158180,1740299441785,-2266.79,0.00014356,2]
[354158181,1740299441796,-4220.06,0.00014356,2]
[354158182,1740299441807,-1324.29,0.00014356,2]
[354158183,1740299441817,-508.07,0.00014356,2]
[354158184,1740299441826,-1240.79,0.00014356,2]
[354158185,1740299441836,-585.87,0.00014356,2]
[354158186,1740299441846,-508.55,0.00014356,2]
[354158187,1740299441855,-1353.9,0.00014438,2]
[354158188,1740299441864,-500.0,0.00014438,2]
[354158189,1740299441874,-2266.79,0.00014438,2]
[354158190,1740299441884,-4220.06,0.00014438,2]
[354158191,1740299441893,-1324.29,0.00014438,2]
[354158192,1740299441904,-508.07,0.00014438,2]
[354158193,1740299441913,-1240.79,0.00014438,2]
[354158194,1740299441923,-585.87,0.00014438,2]
[354158195,1740299441932,-508.55,0.00014438,2]